[Event "Romanian Championship Open 2025"]
[Site "Craiova"]
[Date "2025.02.15"]
[Round "1.1"]
[White "Petroff, Vlad"]
[Black "Lupulescu, Constantin"]
[Result "0-1"]
[Annotator "TA"]
[ECO "D00"]
[WhiteElo "2112"]
[BlackElo "2603"]
[PlyCount "44"]
[EventDate "2025.02.12"]
[EventCountry "ROU"]
[SourceTitle "playchess.com"]
[Source "ChessBase"]
[SourceQuality "1"]
[TimeControl "40/5400+30:900+30"]

{[%evp 9,44,-19,0,-8,-7,-10,-5,-14,-9,-30,-36,-24,-33,-18,-16,-237,-220,-229,-203,-220,-224,-229,-211,-201,-221,-231,-236,-248,-244,-237,-250,-252,-241,-249,-213,-227,-171]} 1. d4 {[%emt 0:00:04]} d5 {[%emt 0:00:12]} 2. Bg5 {[%emt 0:00:22]} c5 {[%emt 0:00:40]} 3. e3 {[%emt 0:00:45]} cxd4 {[%emt 0:03:10]} 4. exd4 {[%emt 0:02:07]} Nc6 {[%emt 0:01:14]} 5. Nf3 {[%emt 0:08:00]} Bg4 {[%emt 0:04:24]} 6. Nbd2 $146 {[%emt 0:02:41] D00: 1 d4 d5: Unusual lines.} (6. Be2 h6 7. Bh4 Qb6 8. b3 g5 9. Bg3 Bg7 10. c3 Nf6 11. h3 Bf5 12. Ne5 Ne4 {0-1 Zimnikov,D-Djukin,M (2011) FIDE World Uni Rapid-E 1st 2021 (8)}) 6... Qc7 {[%emt 0:04:48]} 7. Be2 {[%emt 0:02:55]} e6 {[%emt 0:00:33]} 8. c3 {[%emt 0:05:07] The position is equal.} Bd6 {[%emt 0:05:22]} 9. O-O {[%emt 0:04:02]} h6 {[%emt 0:10:47]} 10. Bh4 {[%emt 0:07:05]} Bxf3 {[%emt 0:04:05]} 11. Nxf3 {[%emt 0:01:14]} f5 {[%emt 0:00:14] White should prevent ...g5.} 12. Ne5 $2 {[%emt 0:06:26] This move loses the game for White.} Bxe5 $19 {[%emt 0:04:38]} 13. Bh5+ {[%emt 0:01:00]} (13. dxe5 g5 14. Bh5+ Ke7 $17) 13... Kd7 $1 {[%emt 0:00:23]} 14. dxe5 {[%emt 0:00:47] [#]} g5 $1 {[%emt 0:00:11]} 15. c4 {[%emt 0:02:00][%cal Oc4d5] [#]} Nge7 {[%emt 0:03:37]} 16. cxd5 {[%emt 0:00:45]} Nxd5 {[%emt 0:01:11]} 17. Bf3 {[%emt 0:00:48]} Rae8 {[%emt 0:10:16]} (17... gxh4 18. Bxd5 exd5 19. Qxd5+ Ke7 20. b4 $17) 18. Bg3 {[%emt 0:01:08]} f4 $1 {[%emt 0:00:18]} 19. Bxd5 {[%emt 0:00:24]} exd5 {[%emt 0:00:05]} 20. Qxd5+ {[%emt 0:00:08]} Kc8 {[%emt 0:00:19]} 21. e6 {[%emt 0:00:48]} Rd8 {[%emt 0:04:21][%mdl 1024] Black has strong compensation.} ({Much less strong is} 21... fxg3 22. hxg3 Qd8 23. Qb3) 22. Qf5 {[%emt 0:00:40] Black must now prevent e7+.} Qe5 {[%emt 0:00:31] Weighted Error Value: White=0.26 (precise) /Black=0.04 (flawless)   Loses game:     	White=1     	---        OK:         	White=3     	Black=7      Best:        	---       	Black=2      Strong:       	---       	Black=3} (22... fxg3 $2 {loses.} 23. e7+ Kb8 (23... Rd7 $2 24. Qf8+ $18) 24. exd8=R+ (24. exd8=Q+ Rxd8 25. hxg3 Qb6 $18) 24... Rxd8 25. hxg3 $18 (25. fxg3 a5 $18)) 0-1

[Event "Romanian Championship Open 2025"]
[Site "Craiova"]
[Date "2025.02.15"]
[Round "1.2"]
[White "Nisipeanu, Liviu-Dieter"]
[Black "Tudoroiu, Razvan-Catalin"]
[Result "1-0"]
[Annotator "TA"]
[ECO "B31"]
[WhiteElo "2596"]
[BlackElo "2085"]
[PlyCount "106"]
[EventDate "2025.02.12"]
[EventCountry "ROU"]
[SourceTitle "playchess.com"]
[Source "ChessBase"]
[SourceQuality "1"]
[TimeControl "40/5400+30:900+30"]

{[%evp 21,106,6,12,20,65,66,74,72,72,72,76,72,75,75,76,68,72,67,92,92,91,90,103,96,90,80,79,72,75,68,77,72,104,80,106,100,129,129,164,153,213,204,208,208,203,195,228,254,297,305,251,244,274,220,214,205,219,212,257,264,254,264,234,233,239,246,263,251,296,279,300,296,242,262,316,291,398,391,377,375,433,429,617,588,695,395,29985]} 1. e4 {[%emt 0:00:04]} c5 {[%emt 0:00:12]} 2. Nf3 {[%emt 0:00:07]} Nc6 {[%emt 0:00:06]} 3. Bb5 {[%emt 0:00:10]} g6 {[%emt 0:00:10]} 4. O-O {[%emt 0:02:20]} Bg7 {[%emt 0:00:10]} 5. Re1 {[%emt 0:00:07]} Nf6 {[%emt 0:01:39]} 6. e5 {[%emt 0:01:41]} Nd5 {[%emt 0:00:38]} 7. Nc3 {[%emt 0:00:06][%cal Bb1c3,Bc3e4,Be4g5,Bg5e6][%mdl 32]} Nc7 {[%emt 0:00:45]} 8. Bxc6 {[%emt 0:00:06]} dxc6 {[%emt 0:00:09]} 9. h3 {[%emt 0:00:15]} O-O {[%emt 0:04:17]} 10. d3 {[%emt 0:00:04]} Ne6 {[%emt 0:06:02]} 11. Ne4 {[%emt 0:02:23] 11.a4 is the modern continuation.} Qc7 {[%emt 0:11:56]} 12. Neg5 {[%emt 0:14:09] B31: Sicilian: 2...Nc6 3 Bb5 g6.} h6 {[%emt 0:10:45]} 13. Nxe6 {[%emt 0:00:17]} Bxe6 {[%emt 0:00:03]} 14. Qe2 {[%emt 0:07:02] White is better.} Rad8 {[%emt 0:22:09]} 15. b3 {[%emt 0:01:40]} Qd7 $146 {[%emt 0:05:25]} (15... a5 16. a4 b6 17. Bb2 Rfe8 18. Nd2 Rc8 19. f4 Rcd8 20. Rf1 Bh8 21. Qf2 Kh7 {½-½ Henri,S (2357)-Volkov,A (2328) ICCF izt 08 email 2015 [5]}) 16. Bb2 {[%emt 0:01:54]} Bd5 {[%emt 0:02:34]} 17. Nd2 {[%emt 0:02:14]} b6 {[%emt 0:06:52]} 18. a4 {[%emt 0:00:35]} a5 {[%emt 0:02:25]} 19. Qe3 {[%emt 0:01:30]} Kh7 {[%emt 0:02:15]} 20. Re2 {[%emt 0:03:36]} Be6 {[%emt 0:06:24]} 21. Rae1 {[%emt 0:01:01]} Qc7 {[%emt 0:01:06]} 22. Qg3 {[%emt 0:00:51]} Qd7 {[%emt 0:06:56]} 23. Nf3 {[%emt 0:04:42]} Bd5 {[%emt 0:01:22]} 24. Re3 {[%emt 0:10:35][%cal Oe5e6]} Bxf3 {[%emt 0:00:39]} 25. Qxf3 {[%emt 0:01:06]} Qd5 {[%emt 0:00:58]} 26. Re4 {[%emt 0:00:53]} Qe6 {[%emt 0:02:01]} 27. Bc3 {[%emt 0:01:09]} Rd5 {[%emt 0:00:42]} 28. g4 {[%emt 0:00:31]} Kg8 {[%emt 0:02:29]} 29. Qe2 {[%emt 0:00:22] White is more active.} g5 {[%emt 0:01:07]} 30. h4 {[%emt 0:04:54]} Qg6 {[%emt 0:01:27]} (30... Kh7 $16 31. Kg2 (31. hxg5 hxg5 32. Qe3 Qg6 $18) 31... Rh8) 31. hxg5 $18 {[%emt 0:00:35]} hxg5 {[%emt 0:00:15]} 32. Kg2 {[%emt 0:00:04]} Rdd8 {[%emt 0:01:38]} 33. Qf3 {[%emt 0:02:35]} Rd5 {[%emt 0:00:42]} 34. Rh1 {[%emt 0:02:58]} f5 {[%emt 0:00:36]} 35. exf6 {[%emt 0:00:19]} Bxf6 {[%emt 0:00:07]} 36. Bxf6 {[%emt 0:03:15]} Rxf6 {[%emt 0:00:50]} 37. Qh3 {[%emt 0:07:01]} Qg7 {[%emt 0:00:04] Dodges Qh8+} 38. Qh5 {[%emt 0:01:16]} Rd4 {[%emt 0:01:00] [#]} 39. Rxe7 {[%emt 0:09:20]} Qxe7 {[%emt 0:00:31]} 40. Qh8+ {[%emt 0:00:00]} (40. Qxg5+ $2 {too greedy.} Qg7 41. Qxg7+ Kxg7 $19) 40... Kf7 {[%emt 0:00:00][%cal Of6f2] ( -> ...Rxf2+!)} 41. Rh7+ {[%emt 0:00:34]} Ke6 {[%emt 0:00:16]} 42. Rxe7+ {[%emt 0:11:36]} Kxe7 {[%emt 0:00:18][%mdl 4096] Endgame KQ-KRR} 43. Qg7+ {[%emt 0:00:04]} Ke6 {[%emt 0:00:43]} 44. Qg8+ {[%emt 0:00:20]} (44. Qxg5 Rdf4 $18) 44... Ke7 {[%emt 0:00:45]} 45. Qxg5 {[%emt 0:00:21]} Rdf4 {[%emt 0:01:01]} 46. Qe5+ {[%emt 0:02:43]} Kd7 {[%emt 0:03:00]} 47. Qe2 {[%emt 0:00:26]} b5 {[%emt 0:01:08]} 48. c4 {[%emt 0:00:53]} ({Much less strong is} 48. g5 $6 R6f5 49. Kg3 bxa4 $18) 48... bxa4 {[%emt 0:03:32]} 49. bxa4 {[%emt 0:00:07]} Re6 {[%emt 0:00:04]} 50. Qd1 {[%emt 0:01:49]} Rd6 {[%emt 0:00:20]} 51. g5 {[%emt 0:06:06]} Rxc4 {[%emt 0:05:58]} (51... Ke6 $142 52. Qe1+ (52. Kg3 Kf5 $16) 52... Kf5 53. Qxa5 Rxd3 54. Qxc5+ Kg6) 52. Qh5 {[%emt 0:00:06]} Rf4 {[%emt 0:00:42][%cal Od6d5] Prevents Qf7+.} 53. Kg3 {[%emt 0:00:33]} Rf7 $2 {[%emt 0:00:42] Black got outplayed after the opening.   Weighted Error Value: White=0.12 (very precise) /Black=0.32  Mistake:       	---       	Black=3      Inaccurate:     	---       	Black=4      OK:         	White=20    	Black=5      Best:        	White=6     	Black=3} (53... Rf8 $18 54. Qh7+ Ke8) 1-0

[Event "Romanian Championship Open 2025"]
[Site "Craiova"]
[Date "2025.02.15"]
[Round "1.3"]
[White "Corbu, George-Alexandru"]
[Black "Gavrilescu, David"]
[Result "0-1"]
[Annotator "TA"]
[ECO "E24"]
[WhiteElo "2080"]
[BlackElo "2543"]
[PlyCount "110"]
[EventDate "2025.02.12"]
[EventCountry "ROU"]
[SourceTitle "playchess.com"]
[Source "ChessBase"]
[SourceQuality "1"]
[TimeControl "40/5400+30:900+30"]

{[%evp 12,110,0,8,-2,0,-6,1,-2,0,-3,-33,-22,-35,43,58,37,40,52,59,88,89,104,87,83,92,107,43,46,47,55,55,99,35,26,31,50,0,0,0,0,0,0,0,0,-12,7,0,0,0,0,-127,-8,-16,0,-12,0,0,0,-154,-188,-445,-431,-414,-396,-504,-499,-485,-500,-499,-483,-481,-513,-505,-499,-560,-551,-689,-712,-735,-683,-648,-616,-1010,-887,-981,-872,-1032,-1015,-891,-864,-1186,-1159,-1190,-1193,-1178,-1161,-1066,-987,-1084,-1078]} 1. d4 {[%emt 0:00:03]} Nf6 {[%emt 0:00:25]} 2. c4 {[%emt 0:00:09]} e6 {[%emt 0:00:28]} 3. Nc3 {[%emt 0:00:35]} Bb4 {[%emt 0:00:30]} 4. a3 {[%emt 0:01:04]} Bxc3+ {[%emt 0:00:33]} 5. bxc3 {[%emt 0:00:10]} Ne4 {[%emt 0:00:32]} 6. Qc2 {[%emt 0:06:03]} f5 {[%emt 0:01:03]} 7. Nh3 {[%emt 0:04:05]} O-O {[%emt 0:00:33] E24: Nimzo-Indian: Sämisch: Unusual Black 5th moves and 5...c5 sidelines.} 8. f3 {[%emt 0:02:20]} Nf6 {[%emt 0:00:19]} 9. e4 {[%emt 0:09:33]} fxe4 {[%emt 0:00:34][%cal Oc7c5] The position is equal.} 10. fxe4 {[%emt 0:00:08] and e5 would now be decisive} e5 {[%emt 0:00:08]} 11. Nf2 {[%emt 0:04:08]} d6 {[%emt 0:03:57]} 12. Be2 {[%emt 0:03:44] Dodges Ng4} c5 {[%emt 0:10:56]} (12... Nc6 $15) 13. d5 $146 {[%emt 0:03:19]} (13. dxe5 dxe5 14. O-O Nc6 15. Bg5 Qe8 16. Nd1 Qg6 17. Bxf6 Rxf6 18. Ne3 Rxf1+ 19. Rxf1 {½-½ Botvinnik,M-Tal,M World-ch22 Tal-Botvinnik +6-2=13 1960 (16)}) 13... Qe8 {[%emt 0:17:06]} 14. g4 {[%emt 0:10:49] Repels Nh5} Nbd7 {[%emt 0:22:37]} 15. h4 $1 {[%emt 0:09:03]} Nb6 {[%emt 0:14:14] [#]} 16. h5 $1 {[%emt 0:08:27]} h6 {[%emt 0:02:22]} 17. g5 {[%emt 0:07:12]} hxg5 {[%emt 0:00:07]} 18. Bxg5 {[%emt 0:00:23]} Bd7 {[%emt 0:01:02]} 19. Rb1 {[%emt 0:05:52]} (19. Qd3 $16) 19... Nh7 {[%emt 0:03:03]} 20. Be3 {[%emt 0:01:50]} Qe7 {[%emt 0:01:11]} 21. Qd2 {[%emt 0:03:59]} Rf6 {[%emt 0:02:02]} 22. Nh3 {[%emt 0:02:14]} (22. Qd3 $16) 22... Bxh3 {[%emt 0:04:13]} 23. Rxh3 {[%emt 0:00:06]} Raf8 {[%emt 0:00:04][%cal Of6f4]} 24. h6 {[%emt 0:06:23]} ({White should try} 24. Qd3 $14) 24... Rg6 $11 {[%emt 0:10:37]} 25. Bh5 $1 {[%emt 0:06:59]} (25. hxg7 Qxg7 26. Qd3 Rg1+ 27. Bxg1 Qxg1+ 28. Kd2 Nxc4+ 29. Qxc4 Qxb1 $17) 25... Rgf6 {[%emt 0:01:32]} (25... Nxc4 26. Bxg6 Nxd2 27. Bxh7+ Kxh7 28. hxg7+ Kxg7 29. Kxd2 $18) 26. Be2 {[%emt 0:00:12] Prevents Rf1+} (26. hxg7 $2 Qxg7 27. Qe2 Nxc4 $19) 26... g6 {[%emt 0:00:05][%cal Of6f4]} 27. Qd3 {[%emt 0:00:10]} Qd7 {[%emt 0:00:43]} 28. Rg3 {[%emt 0:01:13]} Qa4 {[%emt 0:00:05]} 29. Bc1 {[%emt 0:02:01]} R8f7 {[%emt 0:01:08]} 30. Rg1 {[%emt 0:01:31]} Kh8 {[%emt 0:01:13]} 31. Qh3 {[%emt 0:01:42]} (31. Rb2 $11) 31... Qc2 {[%emt 0:01:19] Really sharp!} ({Black should try} 31... Nxc4 $17 32. Bd1 Qa5) 32. Qd3 {[%emt 0:00:11]} Qa4 {[%emt 0:01:11]} 33. Qd1 {[%emt 0:00:43]} Qd7 {[%emt 0:00:22]} 34. Bg4 {[%emt 0:00:29]} Qe7 {[%emt 0:00:12]} 35. Qe2 {[%emt 0:00:30] Repels Rf2. Black converts the advantage convincingly.} (35. Qd3 $1 $11) 35... Rf2 $1 $36 {[%emt 0:00:36][%mdl 2048] White is under strong pressure.} 36. Qxf2 {[%emt 0:00:17]} (36. Qe3) 36... Rxf2 $19 {[%emt 0:00:04]} 37. Kxf2 {[%emt 0:00:05] [#]} Qh4+ $1 {[%emt 0:00:52]} (37... Nxc4 38. Bf3 $15) 38. Rg3 {[%emt 0:00:53]} Nf6 {[%emt 0:00:21] Black is clearly winning.} (38... Nxc4 39. Rxb7 Nf6 40. Rb8+ Kh7 41. Rb7+ Kh8 42. Bf3 $11) 39. Bf3 {[%emt 0:00:40]} Nxe4+ {[%emt 0:01:01]} ({Not} 39... Kh7 40. Bg5 $11) 40. Bxe4 {[%emt 0:00:00]} Qxe4 {[%emt 0:00:00]} 41. Rb2 {[%emt 0:00:54] Against Qc2+} Nxc4 {[%emt 0:04:28]} 42. Re2 {[%emt 0:04:44]} Qxd5 {[%emt 0:00:21]} 43. Rf3 {[%emt 0:07:20]} e4 {[%emt 0:01:13]} 44. Rf4 {[%emt 0:02:05]} Ne5 {[%emt 0:00:17]} 45. Rf8+ {[%emt 0:01:32]} Kh7 {[%emt 0:00:01]} 46. Bf4 {[%emt 0:00:14] [#]} g5 $1 {[%emt 0:07:01]} 47. Be3 {[%emt 0:01:10]} (47. Bxe5 Qxe5) 47... Kxh6 {[%emt 0:00:36] and ...Kg7 would now be decisive} 48. Kg3 {[%emt 0:00:24]} Nf3 {[%emt 0:00:06]} 49. Re8 {[%emt 0:00:30]} Qd3 {[%emt 0:01:34][%csl LRc3,LRe2]} 50. Kf2 {[%emt 0:00:03]} Ne5 {[%emt 0:00:19]} 51. Rh8+ {[%emt 0:00:20]} Kg7 {[%emt 0:00:12]} 52. Rh3 {[%emt 0:00:27]} Ng4+ {[%emt 0:01:44]} 53. Kf1 {[%emt 0:00:10]} Qxc3 {[%emt 0:00:06]} 54. Rg3 {[%emt 0:00:08]} Nxe3+ {[%emt 0:00:11]} 55. Rexe3 {[%emt 0:00:06]} Qe5 {[%emt 0:00:09] Weighted Error Value: White=0.53/Black=0.19 (very precise)   Mistake:       	White=6     	Black=2      Inaccurate:     	White=1     	Black=2      OK:         	White=8     	Black=15     Best:        	White=3     	Black=3      Strong:       	White=3     	Black=2} 0-1

[Event "Romanian Championship Open 2025"]
[Site "Craiova"]
[Date "2025.02.15"]
[Round "1.4"]
[White "Parligras, Mircea-Emilian"]
[Black "Dascalescu, Adelin-Stefan"]
[Result "1-0"]
[Annotator "TA"]
[ECO "A80"]
[WhiteElo "2528"]
[BlackElo "2045"]
[PlyCount "121"]
[EventDate "2025.02.12"]
[EventCountry "ROU"]
[SourceTitle "playchess.com"]
[Source "ChessBase"]
[SourceQuality "1"]
[TimeControl "40/5400+30:900+30"]

{[%evp 9,121,52,59,41,44,42,52,41,35,31,37,35,54,54,87,64,138,128,187,136,141,141,140,113,161,116,138,130,134,131,230,221,234,240,251,242,240,240,302,222,216,216,223,234,222,170,168,183,184,180,166,170,172,152,162,124,117,120,113,120,113,90,88,85,79,97,93,90,95,108,93,96,131,104,178,174,204,204,168,118,156,120,277,280,395,381,358,356,608,414,630,599,645,644,628,621,539,364,353,275,483,291,1372,1264,4894,2601,5156,5156,2875,6270,6270,6211,5160,5160]} 1. d4 {[%emt 0:00:06]} f5 {[%emt 0:00:06]} 2. Nc3 {[%emt 0:00:15]} Nf6 {[%emt 0:00:19]} 3. Bg5 {[%emt 0:00:15]} d6 {[%emt 0:01:30]} 4. e3 {[%emt 0:03:57]} Nbd7 {[%emt 0:00:28]} 5. Bd3 {[%emt 0:00:36]} g6 {[%emt 0:00:12]} 6. e4 $146 {[%emt 0:01:42] A80: Dutch Defence: Unusual White second moves.} (6. Nge2 Bg7 7. O-O c5 8. Re1 a6 9. Nf4 Nb6 10. dxc5 dxc5 11. Qe2 e5 12. e4 exf4 13. exf5+ {1-0 Anders,H-Schacknies,K Rangliste 1400-1700 19734 2016}) 6... fxe4 {[%emt 0:02:26]} 7. Nxe4 {[%emt 0:00:11]} Bg7 {[%emt 0:01:04]} 8. Nf3 {[%emt 0:01:33][%cal Bg1f3,Bf3h4,Bh4f5][%mdl 32] White is slightly better.} Nxe4 {[%emt 0:02:10]} 9. Bxe4 {[%emt 0:00:07]} Nf6 {[%emt 0:00:05]} 10. Bd3 {[%emt 0:00:28]} O-O {[%emt 0:05:03]} 11. O-O {[%emt 0:01:30]} h6 {[%emt 0:07:04]} 12. Be3 {[%emt 0:11:26]} Bf5 {[%emt 0:05:33]} ({Black should try} 12... g5 $1 $14) 13. Nh4 $16 {[%emt 0:03:56][%csl LRf5,LRg6]} Bxd3 {[%emt 0:00:46]} (13... Nd5 $16 14. Nxg6 Bxg6) 14. Qxd3 $18 {[%emt 0:00:09][%cal Oe3h6]} (14. cxd3 Kh7 $15) 14... g5 {[%emt 0:00:47]} 15. Nf5 {[%emt 0:02:39]} Qd7 {[%emt 0:02:56]} 16. d5 {[%emt 0:14:06] White is more active.} c6 {[%emt 0:05:27]} (16... Nh5 $16) 17. Nxg7 {[%emt 0:03:48]} Kxg7 {[%emt 0:00:06]} 18. c4 {[%emt 0:00:08][%cal Bc2c4,Bc4d5][%mdl 32]} Qe8 {[%emt 0:12:44]} 19. Rae1 {[%emt 0:04:38]} Qf7 {[%emt 0:01:31]} (19... cxd5 $16 20. cxd5 Qg6) 20. Bd4 {[%emt 0:01:12]} Rae8 {[%emt 0:02:13]} 21. Re6 {[%emt 0:03:47]} (21. Bxa7 cxd5 22. c5 Kg8 $11) 21... Qg6 {[%emt 0:01:19]} 22. Qb3 {[%emt 0:01:37]} cxd5 {[%emt 0:04:12]} 23. cxd5 {[%emt 0:00:21]} b6 {[%emt 0:02:07]} 24. Rfe1 {[%emt 0:00:39][%cal Ob3b5]} Rf7 {[%emt 0:00:12]} 25. Qa4 {[%emt 0:06:22]} Kf8 {[%emt 0:01:19]} 26. Qxa7 {[%emt 0:00:41]} Qf5 {[%emt 0:02:20]} 27. Qxb6 {[%emt 0:02:10]} Nxd5 {[%emt 0:03:09]} 28. Qb5 {[%emt 0:05:50]} (28. Qxd6 $6 Ne3 29. Qg3 (29. R6xe3 $2 Qxf2+ 30. Kh1 Qf1+ 31. Rxf1 Rxf1#) 29... Qxe6 $14) 28... Ne3 {[%emt 0:00:08]} 29. Qxf5 {[%emt 0:00:06]} Nxf5 {[%emt 0:00:02]} 30. Bc3 {[%emt 0:00:21]} Rc8 {[%emt 0:02:30]} 31. Kf1 {[%emt 0:06:01]} g4 {[%emt 0:00:45]} 32. Rd1 {[%emt 0:03:48]} Ke8 {[%emt 0:03:37]} 33. Rd3 {[%emt 0:02:20]} Kd7 {[%emt 0:05:12]} 34. Re4 {[%emt 0:00:49]} h5 {[%emt 0:00:28]} 35. g3 {[%emt 0:04:07]} e6 {[%emt 0:10:17]} 36. a4 {[%emt 0:01:55][%cal Ba2a4,Ba4a5,Ba5a6][%mdl 32]} d5 {[%emt 0:03:26]} 37. a5 {[%emt 0:01:12]} Nd6 {[%emt 0:05:55]} 38. Rb4 {[%emt 0:01:00]} Rf5 {[%emt 0:01:57]} 39. a6 {[%emt 0:03:29]} Ra8 {[%emt 0:00:44]} 40. Ra4 $36 {[%emt 0:11:13][%mdl 2048] Black is under strong pressure.} Nb5 {[%emt 0:00:00]} 41. Bd4 {[%emt 0:15:30]} e5 {[%emt 0:02:33] [#]} (41... Nxd4 $16 42. Rdxd4 Kc6) 42. Bc5 $1 {[%emt 0:00:00]} Kc6 {[%emt 0:00:22] [#]} 43. b4 {[%emt 0:00:00]} d4 {[%emt 0:01:37]} 44. Rd2 {[%emt 0:00:00]} ({White should play} 44. Ra5 $18) 44... Nc3 {[%emt 0:01:10]} 45. Ra5 {[%emt 0:00:00][%cal Oc5d4]} Ne4 $2 {[%emt 0:00:10] A mistake that costs the game.} (45... Rf7 $16 {was called for.} 46. Rc2 Rc7) 46. Re2 {[%emt 0:00:00]} Nc3 {[%emt 0:00:37] [#]} (46... Nxc5 $142 47. Rxc5+ Kb6) 47. Bxd4 $1 {[%emt 0:00:00][%mdl 512]} Nxe2 {[%emt 0:00:20]} 48. Kxe2 {[%emt 0:00:00][%mdl 4096] Endgame KRR-KRB} Re8 $2 {[%emt 0:02:24]} (48... Kc7 49. Rc5+ (49. Bxe5+ Kc6 $18) (49. Rxe5 Rxe5+ 50. Bxe5+ Kc6 $11) 49... Kd6) 49. Be3 {[%emt 0:00:00]} Rb8 {[%emt 0:00:57]} (49... Kc7 $142 50. Rb5 Ref8 51. Rb7+ Kc8) 50. Rc5+ {[%emt 0:00:00]} Kd6 {[%emt 0:00:52]} 51. a7 {[%emt 0:00:00]} Ra8 {[%emt 0:00:04]} 52. b5 {[%emt 0:00:00][%cal Bb4b5,Bb5b6][%mdl 32]} Rf7 {[%emt 0:00:29]} 53. b6 {[%emt 0:00:00]} Rb7 {[%emt 0:00:17]} 54. Ra5 {[%emt 0:00:00]} Ke6 $2 {[%emt 0:03:45]} (54... Rh7 55. Rc5 Rb7) 55. Kd3 {[%emt 0:00:00]} Kf5 $2 {[%emt 0:01:06]} (55... Kd6 56. Ke4 Rg7 57. Rxe5 Kc6 58. Rxh5 Rd8) 56. Kc4 {[%emt 0:00:00] White is clearly winning.} Ke6 {[%emt 0:03:31]} 57. Kb5 {[%emt 0:00:00]} Rd7 {[%emt 0:01:36]} 58. Ka6 {[%emt 0:00:00] Strongly threatening b7.} Rd6 {[%emt 0:00:34]} 59. Bc5 {[%emt 0:00:00]} Rc6 {[%emt 0:00:20]} 60. Kb5 {[%emt 0:00:00]} Rac8 {[%emt 0:00:32]} 61. Bb4 {[%emt 0:00:00] Weighted Error Value: White=0.21 (precise) /Black=0.57  Mistake:       	White=1     	Black=11     Inaccurate:     	White=2     	Black=4      OK:         	White=19    	Black=17     Best:        	White=2     	Black=5      Strong:       	White=1     	---} ({Stronger than} 61. a8=R Rxc5+ 62. Ka4 Rc4+ 63. Ka3 Rc3+ 64. Kb2 (64. Kb4 R8c4+ 65. Kb5 Rc5+ 66. Ka4 R5c4+ 67. Kb5 Rc5+ 68. Kb4 R5c4+ 69. Kb5 $11) 64... Rc2+ 65. Ka3 (65. Kb3 R8c3+ 66. Kb4 Rc4+ 67. Kb5 Rc5+ 68. Ka4 R5c4+ 69. Ka3 R4c3+ 70. Ka4 Rc4+ 71. Ka3 R4c3+ 72. Ka4 Rc4+ $11) 65... R8c3+ 66. Kb4 Rc6 $11) 1-0